bitfinex/quotes_ETHUSD_20220227
["timestamp","ask_amount","ask_price","bid_price","bid_amount"]
[1645937844129,2.11620597,2708.7,2708.6,5.7199971]
[1645937844330,5.61620597,2708.7,2708.6,5.7199971]
[1645937844527,5.61620597,2708.7,2708.6,2.11898987]
[1645937844528,5.98590597,2708.7,2708.6,2.11898987]
[1645937845634,8.0,2708.6,2707.7,0.25]
[1645937845835,8.0,2708.6,2707.2,1.0]
[1645937845836,0.3697,2708.3,2707.2,1.0]
[1645937846034,5.06168219,2708.2,2707.0,1.4284]
[1645937846244,1.55987718,2708.1,2707.0,1.4284]
[1645937846584,3.50180501,2708.0,2707.0,1.4284]
[1645937846784,3.50180501,2708.0,2706.8,2.15864651]
[1645937846785,1.40298465,2707.4,2706.8,0.54814651]
[1645937846991,3.5,2707.3,2706.9,7.388]
[1645937847785,3.5,2707.3,2706.9,6.9253]
[1645937850832,3.5,2707.3,2706.9,6.4626]
[1645937852133,1.40298465,2707.4,2706.9,6.4626]
[1645937853531,3.5,2707.3,2706.9,6.4626]
[1645937853734,1.40298465,2707.4,2706.9,6.4626]
[1645937853937,1.40298465,2707.4,2706.9,5.9999]
[1645937853938,3.5,2707.3,2706.9,5.9999]
[1645937854582,3.8697,2707.3,2706.9,5.9999]
[1645937856784,3.8697,2707.3,2706.9,5.5372]
[1645937857184,3.8697,2707.3,2706.9,5.4872]
[1645937858527,15.1297,2707.3,2706.9,5.4872]
[1645937859133,3.8697,2707.3,2706.9,5.4872]
[1645937859331,5.3697,2707.1,2706.9,5.4872]
[1645937859730,0.3697,2707.1,2706.9,5.4872]
[1645937859931,3.5,2707.3,2706.9,5.4872]
[1645937860331,0.3,2707.2,2706.9,5.4872]
[1645937860536,3.5,2707.3,2706.9,5.4872]
[1645937861237,0.6697,2707.2,2706.9,5.4872]
[1645937861584,3.5,2707.1,2706.9,5.4872]
[1645937862387,3.5,2707.1,2706.9,3.82210139]
[1645937864393,0.3697,2707.2,2706.9,3.82210139]
[1645937864589,3.5,2707.1,2706.9,3.82210139]
[1645937864788,3.5,2707.3,2706.9,3.82210139]
[1645937867735,8.8,2707.3,2706.9,3.82210139]
[1645937868236,20.4297,2707.3,2706.9,3.82210139]
[1645937868438,9.1697,2707.3,2706.9,3.82210139]
[1645937868839,3.8,2707.3,2706.9,3.82210139]
[1645937870076,1.40298465,2707.4,2706.9,3.82210139]
[1645937870483,3.5,2707.6,2706.9,3.82210139]
[1645937870680,3.8,2707.6,2706.9,3.82210139]
[1645937871483,1.03770766,2707.5,2706.9,3.82210139]
[1645937871681,3.5,2707.4,2706.9,3.82210139]
[1645937872086,1.03770766,2707.5,2706.9,3.82210139]
[1645937873123,3.5,2707.4,2706.9,3.82210139]
[1645937873526,1.03770766,2707.5,2706.9,3.82210139]
[1645937873728,3.5,2707.4,2706.9,3.82210139]
[1645937874332,1.03770766,2707.5,2706.9,3.82210139]
[1645937874736,3.5,2707.4,2706.9,3.82210139]
[1645937877881,1.03770766,2707.5,2706.9,3.82210139]
[1645937878081,3.5,2707.4,2706.9,3.82210139]
[1645937883941,1.56083621,2707.3,2706.9,3.82210139]
[1645937884795,3.5,2707.4,2706.9,3.82210139]
[1645937885399,1.56082695,2707.3,2706.9,3.82210139]
[1645937886396,1.55975221,2707.3,2706.9,3.82210139]
[1645937896430,2.67718065,2707.3,2706.9,3.82210139]
[1645937896630,3.5,2707.2,2706.9,3.82210139]
[1645937896832,1.11742844,2707.3,2706.9,3.82210139]
[1645937896833,2.1105921,2707.3,2706.9,3.82210139]
[1645937897031,1.41742844,2707.3,2706.9,3.82210139]
[1645937897235,3.5,2707.2,2706.9,3.82210139]
[1645937898032,2.1105921,2707.3,2706.9,3.82210139]
[1645937898237,1.41742844,2707.3,2706.9,3.82210139]
[1645937898432,3.5,2707.2,2706.9,3.82210139]
[1645937898631,4.19316366,2707.2,2706.9,2.15708229]
[1645937899078,3.5,2707.2,2706.9,2.15708229]
[1645937899279,2.1105921,2707.3,2706.9,2.15708229]
[1645937899981,3.5,2707.2,2706.9,2.15708229]
[1645937900179,2.1105921,2707.3,2706.9,2.15708229]
[1645937901085,3.5,2707.2,2706.9,2.15708229]
[1645937901587,2.1105921,2707.3,2706.9,2.15708229]
[1645937901986,3.5,2707.2,2706.9,2.15708229]
[1645937902186,2.1105921,2707.3,2706.9,2.15708229]
[1645937903428,3.5,2707.2,2706.9,2.15708229]
[1645937903824,2.1105921,2707.3,2706.9,2.15708229]
[1645937904023,3.5,2707.2,2706.9,2.15708229]
[1645937905427,14.76,2707.2,2706.9,2.15708229]
[1645937905831,11.26,2707.2,2706.9,2.15708229]
[1645937906231,1.56091826,2707.1,2706.9,2.15708229]
[1645937906432,1.56091826,2707.0,2706.9,2.15708229]
[1645937906683,1.56091826,2707.2,2706.9,2.15708229]
[1645937906883,1.56091826,2707.1,2706.9,2.15708229]
[1645937907084,1.56091826,2707.0,2706.9,2.15708229]
[1645937907283,1.56091826,2707.2,2706.9,2.15708229]
[1645937910184,12.82091826,2707.2,2706.9,2.15708229]
[1645937910429,1.56091826,2707.1,2706.9,2.15708229]
[1645937913629,2.10517389,2707.1,2706.9,2.15708229]
[1645937913834,1.56091826,2707.0,2706.9,2.15708229]
[1645937921333,1.55934184,2707.0,2706.9,2.15708229]
[1645937925181,1.50934184,2707.0,2706.9,2.15708229]
[1645937927633,1.50934184,2707.0,2706.9,0.49206605]
[1645937930494,0.54425563,2707.1,2707.0,4.0]
[1645937930694,1.24444641,2707.8,2707.1,4.5]
[1645937930695,0.55128275,2707.8,2707.1,4.5]
[1645937930893,0.55128275,2707.8,2707.2,1.78690304]
[1645937931294,0.69316366,2708.4,2707.3,14.283]
[1645937931496,0.00180501,2708.3,2708.1,1.41721768]
[1645937931696,0.69316366,2708.3,2708.1,1.41721768]
[1645937931895,0.69316366,2708.4,2708.1,1.41721768]
[1645937932295,0.69316366,2708.4,2707.5,2.1635]
[1645937932496,0.00180501,2708.3,2707.5,1.1635]
[1645937933933,0.00569149,2708.0,2707.6,1.09736657]
[1645937934132,0.00569149,2708.0,2707.7,14.282]
[1645937934936,0.00180501,2708.3,2707.7,14.282]
[1645937935237,0.0056914,2708.0,2707.7,14.282]
[1645937936037,3.50180501,2708.3,2707.7,14.282]
[1645937936038,0.00180501,2708.3,2707.7,14.282]
[1645937936238,11.26,2708.4,2707.7,14.282]
[1645937936438,0.0056914,2708.0,2707.7,14.282]
[1645937937292,0.00180501,2708.3,2707.7,14.282]
[1645937937488,0.0056914,2708.0,2707.7,14.282]
[1645937938490,0.00180501,2708.3,2707.7,14.282]
[1645937938690,11.26,2708.4,2707.7,14.282]
[1645937939898,0.0045516,2708.2,2707.7,14.282]
[1645937940738,0.00180501,2708.3,2707.7,14.282]
[1645937940938,12.58570893,2708.4,2707.7,14.282]
[1645937941138,0.0045516,2708.1,2707.7,14.282]
[1645937941941,0.00180501,2708.3,2707.7,14.282]
[1645937942140,11.26,2708.4,2707.7,14.282]
[1645937942341,0.00591199,2708.0,2707.7,14.282]
[1645937943342,0.00180501,2708.3,2707.7,14.282]
[1645937943541,0.0059119,2708.0,2707.7,14.282]
[1645937944382,0.00180501,2708.3,2707.8,0.53]
[1645937944584,0.54236755,2708.4,2707.8,0.53]
[1645937944782,0.0059119,2708.0,2707.8,0.53]
[1645937944982,0.0059119,2708.0,2707.9,14.282]
[1645937945193,0.0059119,2708.0,2707.9,14.812]
[1645937945386,0.0059119,2708.0,2707.9,16.15214193]
[1645937945588,0.00180501,2708.3,2707.9,16.15214193]
[1645937945790,0.54236755,2708.4,2707.9,16.15214193]
[1645937945989,0.00591196,2708.1,2707.9,16.15214193]
[1645937946892,0.54236755,2708.4,2707.9,16.15214193]
[1645937947090,0.00591194,2708.1,2707.9,16.15214193]
[1645937948135,0.54236755,2708.4,2707.9,16.15214193]
[1645937948333,0.00591194,2708.1,2707.9,16.15214193]
[1645937949336,0.54236755,2708.4,2707.9,16.15214193]
[1645937949537,0.00591194,2708.1,2707.9,16.15214193]
[1645937950543,0.54236755,2708.4,2707.9,16.15214193]
[1645937950742,0.00454125,2708.1,2707.9,16.15214193]
[1645937951586,0.54236755,2708.4,2707.9,16.15214193]
[1645937955440,0.00591186,2708.3,2707.9,16.15214193]
[1645937956547,0.54236755,2708.4,2707.9,17.32598981]
[1645937956843,0.54236755,2708.4,2708.0,1.38755637]
[1645937956844,0.00591189,2708.2,2708.0,1.38755637]
[1645937957043,1.189e-05,2708.2,2708.1,14.9845099]
[1645937957244,1.189e-05,2708.2,2708.1,17.2845099]
[1645937957445,1.189e-05,2708.2,2708.1,17.2280641]
[1645937957743,0.54236755,2708.4,2708.2,0.17320344]
[1645937957944,0.00180501,2709.4,2708.3,14.811]
[1645937958147,0.00180501,2709.4,2708.3,15.811]
[1645937958445,2.07892614,2709.4,2708.3,14.811]
[1645937958743,5.05982113,2709.3,2708.3,14.811]
[1645937958943,1.56162614,2709.2,2708.3,14.811]
[1645937960392,0.00591156,2708.9,2708.3,14.811]
[1645937960588,0.00591156,2708.9,2708.4,1.43519131]
[1645937960793,0.00591156,2708.9,2708.5,14.28]
[1645937961190,0.00591156,2708.9,2708.5,15.28]
[1645937961489,0.00180501,2709.5,2708.5,15.28]
[1645937961693,0.00591158,2708.8,2708.5,15.28]
[1645937961888,0.00591158,2708.8,2708.5,14.28]
[1645937962489,0.14940501,2709.3,2708.5,14.28]
[1645937962882,0.00591161,2708.8,2708.5,14.28]
[1645937963059,11.6297,2708.6,2708.5,12.6159288]
[1645937963256,16.83725853,2708.6,2708.5,12.6159288]
[1645937963464,4.0173,2708.6,2708.5,12.6159288]
[1645937963862,5.14467512,2708.6,2708.5,12.6159288]
[1645937964059,6.70491282,2708.6,2708.5,12.6159288]
[1645937964458,2.0775377,2708.6,2708.5,12.6159288]
[1645937965466,3.13457913,2708.6,2708.5,12.6159288]
[1645937966581,1.7078377,2708.6,2708.5,12.6159288]
[1645937966782,1.5602377,2708.6,2708.5,12.6159288]
[1645937968787,1.5602377,2708.6,2708.5,12.6147245]
[1645937973550,16.6899377,2708.6,2708.5,12.6147245]
[1645937974197,17.38310136,2708.6,2708.5,12.6147245]
[1645937974396,18.71146744,2708.6,2708.5,12.6147245]
[1645937974598,6.38860378,2708.6,2708.5,12.6147245]
[1645937974798,17.64860378,2708.6,2708.5,12.6147245]
[1645937975001,14.14860378,2708.6,2708.5,12.6147245]
[1645937975602,12.8202377,2708.6,2708.5,12.6147245]
[1645937976406,1.5602377,2708.6,2708.5,12.6147245]
[1645937978035,16.3202377,2708.6,2708.5,12.6147245]
[1645937978235,13.51340136,2708.6,2708.5,12.6147245]
[1645937978435,12.8202377,2708.6,2708.5,12.6147245]
[1645937978637,1.5602377,2708.6,2708.5,12.6147245]
[1645937978836,2.25340136,2708.6,2708.5,12.6147245]
[1645937979042,1.5602377,2708.6,2708.5,12.6147245]
[1645937983087,1.5602377,2708.6,2708.5,10.95057976]
[1645937990206,2.8016098,2708.7,2708.5,10.95057976]
[1645937990411,1.5602377,2708.6,2708.5,10.95057976]
[1645937991909,5.0602377,2708.6,2708.5,10.95057976]
[1645937992112,1.5602377,2708.6,2708.5,10.95057976]
[1645937992508,12.8202377,2708.6,2708.5,10.95057976]
[1645937992709,17.01340136,2708.6,2708.5,10.95057976]
[1645937992943,16.3202377,2708.6,2708.5,10.95057976]
[1645937993341,16.6202377,2708.6,2708.5,10.95057976]
[1645937993542,5.3602377,2708.6,2708.5,10.95057976]
[1645937994145,6.05807913,2708.6,2708.5,10.95057976]
[1645937995348,2.55807913,2708.6,2708.5,10.95057976]
[1645937997995,2.25807913,2708.6,2708.5,10.95057976]
[1645937998395,1.5602377,2708.6,2708.5,10.95057976]
[1645937998797,0.69784143,2708.6,2708.5,10.95057976]
[1645937998996,2.25807913,2708.6,2708.5,10.95057976]
[1645937999194,1.5602377,2708.6,2708.5,10.95057976]
[1645937999796,2.80069417,2708.7,2708.5,10.95057976]
[1645937999999,1.5602377,2708.6,2708.5,10.95057976]
[1645938000200,1.5602377,2708.6,2708.5,10.88647976]
[1645938000847,12.8202377,2708.6,2708.5,10.88647976]
[1645938001744,13.81807913,2708.6,2708.5,10.88647976]
[1645938001945,17.81908643,2708.6,2708.5,10.88647976]
[1645938002346,7.25679845,2708.6,2708.5,10.88647976]
[1645938002747,6.61052051,2708.6,2708.5,10.88647976]
[1645938003148,6.61052051,2708.6,2708.5,9.22211939]
[1645938003549,2.60965505,2708.6,2708.5,9.22211939]
[1645938003750,1.91167178,2708.6,2708.5,9.22211939]
[1645938004597,3.09203115,2708.6,2708.5,9.22211939]
[1645938005103,1.91167178,2708.6,2708.5,9.22211939]
[1645938005501,2.60972094,2708.6,2708.5,9.22211939]
[1645938006501,2.30972094,2708.6,2708.5,9.22211939]
[1645938006702,1.61167178,2708.6,2708.5,9.22211939]
[1645938006904,2.30972094,2708.6,2708.5,9.22211939]
[1645938007105,1.61167178,2708.6,2708.5,9.22211939]
[1645938007305,1.61167178,2708.6,2708.5,10.45387938]
[1645938008350,0.00550981,2708.7,2708.5,10.98387938]
[1645938008547,0.00550981,2708.7,2708.5,11.98387938]
[1645938008948,0.00550981,2708.7,2708.5,12.28387938]
[1645938009147,0.00550981,2708.7,2708.5,11.98387938]
[1645938009347,0.97675672,2708.6,2708.5,12.28387938]
[1645938009749,5.672e-05,2708.6,2708.5,10.75211939]
[1645938010854,5.672e-05,2708.6,2708.5,12.14769948]
[1645938011354,5.672e-05,2708.6,2708.5,10.75211939]
[1645938011822,5.672e-05,2708.6,2708.5,9.75211939]
[1645938012026,5.672e-05,2708.6,2708.5,9.22211939]
[1645938014425,0.1476,2708.7,2708.5,9.22211939]
[1645938016846,0.15351526,2708.7,2708.5,9.22211939]
[1645938017647,11.4076,2708.7,2708.5,1.939e-05]
[1645938017849,19.87413347,2708.6,2708.5,1.939e-05]
[1645938018165,18.6064,2708.6,2708.5,1.939e-05]
[1645938018349,21.95140425,2708.6,2708.5,1.939e-05]
[1645938018547,26.64394661,2708.6,2708.5,1.939e-05]
[1645938018748,11.6297,2708.2,2707.9,0.09998101]
[1645938018952,11.6297,2708.0,2707.9,0.09998101]
[1645938019214,11.7077,2708.0,2706.9,3.44361467]
[1645938019413,11.56,2708.0,2706.8,0.35094101]
[1645938019613,0.1477,2707.9,2706.8,0.35094101]
[1645938020016,1.07486188,2707.6,2706.8,1.41588314]
[1645938020214,1.07486188,2707.6,2706.8,0.10094101]
[1645938020826,1.37486188,2707.6,2706.8,0.09998101]
[1645938022218,1.37486188,2707.6,2706.2,0.25]
[1645938022420,1.37486188,2707.6,2706.0,3.01188101]
[1645938022876,1.37486188,2707.6,2706.8,0.00454345]
[1645938023761,1.37486188,2707.6,2706.3,3.5]
[1645938023966,1.37486188,2707.6,2707.1,0.00454295]
[1645938024167,12.63486188,2707.6,2707.1,0.00454295]
[1645938024465,1.37486188,2707.6,2707.1,0.00454295]
[1645938024665,2.37486188,2707.6,2707.1,0.00454295]
[1645938025066,1.37486188,2707.6,2706.5,1.1440735]
[1645938025266,1.37486188,2707.6,2707.2,0.0045427]
[1645938026267,1.37486188,2707.6,2706.6,0.07349935]
[1645938026466,1.37486188,2707.6,2707.2,0.0045427]
[1645938027303,1.37486188,2707.6,2706.6,0.100941]
[1645938027504,0.1477,2707.5,2706.7,0.00096]
[1645938027704,0.1477,2707.5,2707.2,0.0045427]
[1645938028105,0.1477,2707.5,2705.2,7.69270987]
[1645938028305,0.1477,2707.5,2705.8,5.35770445]
[1645938028506,1.56079189,2707.4,2705.8,5.72740445]
[1645938028711,0.3,2707.4,2706.6,1.31494225]
[1645938029110,0.4477,2707.5,2706.1,4.03]
[1645938029306,0.1477,2707.5,2706.1,4.03]
[1645938029507,0.1477,2707.5,2706.1,6.52776235]
[1645938029907,0.00457404,2707.1,2706.1,6.52776235]
[1645938030108,1.05125645,2706.4,2706.1,2.49776235]
[1645938030357,0.00457404,2707.1,2706.2,7.3903]
[1645938031054,12.7774,2707.3,2706.2,7.3903]
[1645938031262,12.7774,2707.3,2706.5,0.00448708]
[1645938031263,5.0,2706.8,2706.5,0.00448708]
[1645938031455,11.26,2706.7,2706.5,0.00448708]
[1645938031657,11.56,2706.7,2706.5,0.00448708]
[1645938031857,0.1477,2706.6,2706.5,0.00448708]
[1645938032153,0.1477,2706.6,2706.2,7.3903]
[1645938032354,0.1477,2706.6,2706.4,0.00448724]
[1645938032553,1.44154885,2706.5,2706.4,0.00448724]
[1645938032753,1.74154885,2706.5,2706.4,0.00448724]
[1645938032954,0.3,2706.5,2706.4,0.00448724]
[1645938033354,13.0774,2706.7,2706.2,7.3903]
[1645938033555,13.0774,2706.7,2706.3,0.00135012]
[1645938034201,1.11576198,2706.4,2706.3,0.00135012]
[1645938034600,1.41576198,2706.4,2706.2,7.3903]
[1645938034800,1.41576198,2706.4,2706.2,7.39478757]
[1645938035005,0.3,2706.4,2706.2,7.39478757]
[1645938035209,1.0,2706.7,2706.2,7.39478757]
[1645938035210,0.4477,2706.7,2706.2,7.39478757]
[1645938035807,0.4477,2706.7,2706.2,7.3903]
[1645938036007,0.4477,2706.7,2706.3,0.00448741]
[1645938036412,0.3,2706.7,2706.3,0.00448741]
[1645938036710,11.56,2706.8,2706.3,0.00448741]
[1645938037017,1.917,2707.1,2706.2,7.3903]
[1645938037210,1.9229231,2707.1,2706.4,0.00448732]
[1645938037410,0.0059231,2707.1,2706.4,0.00448732]
[1645938037610,0.0059231,2707.1,2706.8,1.44342412]
[1645938037875,0.0059231,2707.1,2706.4,0.00448732]
[1645938038271,3.18745032,2707.6,2706.3,0.00096]
[1645938038472,3.18745032,2707.6,2706.6,0.00448691]
[1645938038473,0.00592352,2707.1,2706.6,0.00448691]
[1645938039476,15.96945032,2707.6,2706.3,0.00096]
[1645938039679,0.00592369,2707.1,2706.7,0.00448674]
[1645938040377,1.37657234,2706.9,2706.7,0.00448674]
[1645938040576,1.37657234,2706.9,2706.3,0.00096]
[1645938040775,1.37657234,2706.9,2706.8,0.00448666]
[1645938041917,0.00723337,2706.7,2706.3,0.00096]
[1645938042115,0.00723337,2706.7,2706.2,7.3903]
[1645938043317,11.6297,2706.6,2706.3,0.00447619]
[1645938043716,11.9297,2706.6,2706.3,0.00447619]
[1645938044121,11.9297,2706.6,2706.2,7.3903]
[1645938044317,11.26,2706.4,2706.3,0.00134675]
[1645938044718,11.56,2706.4,2706.3,0.00134675]
[1645938044920,11.9297,2706.4,2706.3,0.00134675]
[1645938045368,11.9297,2706.4,2706.2,7.3903]
[1645938045369,13.0774,2706.4,2706.2,7.3903]
[1645938045763,13.0774,2706.4,2706.2,7.3916468]
[1645938046563,13.0774,2706.4,2706.2,7.3903]
[1645938046963,13.0774,2706.4,2706.2,7.39477644]
[1645938047163,12.7077,2706.4,2706.2,7.39477644]
[1645938047363,13.0774,2706.4,2706.2,7.39477644]
[1645938047763,13.0774,2706.4,2706.2,7.3903]
[1645938047967,11.7077,2706.4,2706.2,7.3903]
[1645938048165,11.56,2706.4,2706.2,7.39477644]
[1645938048465,0.3,2706.4,2706.2,7.39477644]
[1645938048664,11.9297,2706.6,2706.2,7.39477644]
[1645938048865,12.9297,2706.6,2706.2,7.39477644]
[1645938049131,11.9297,2706.6,2706.2,7.39477644]
[1645938049330,11.9297,2706.6,2706.3,0.00447627]
[1645938050329,11.9297,2706.6,2706.2,7.3903]
[1645938050534,11.9297,2706.6,2706.3,0.00397262]
[1645938051636,11.9297,2706.6,2706.2,7.3903]
[1645938052235,0.00723337,2706.7,2706.2,7.3903]
[1645938054157,0.00723337,2706.7,2706.5,1.23280431]
[1645938054758,0.00723337,2706.7,2706.3,0.00448305]
[1645938055160,0.00723337,2706.7,2706.2,7.3903]
[1645938055563,0.00723337,2706.7,2706.4,0.00448297]
[1645938056808,0.00723337,2706.7,2706.4,0.00448288]
[1645938058708,0.00723337,2706.7,2706.2,7.3903]
[1645938059209,0.00723337,2706.7,2706.4,0.00366001]
[1645938060457,0.00723337,2706.7,2706.4,0.03110166]
[1645938061055,1.56127197,2706.6,2706.4,0.03110166]
[1645938061255,1.56127197,2706.6,2706.4,0.02744165]
[1645938061456,1.56127197,2706.6,2706.4,0.0548833]
[1645938061657,1.56127197,2706.6,2706.4,0.05854331]
[1645938062055,0.09186682,2706.3,2706.2,7.3903]
[1645938062654,1.65328273,2706.3,2706.2,7.3903]
[1645938062856,0.09186682,2706.3,2706.2,7.3903]
[1645938067108,1.65328775,2706.3,2706.2,7.3903]
[1645938067513,12.91328775,2706.3,2706.2,7.3903]
[1645938069153,13.21328775,2706.3,2706.2,7.3903]
[1645938069553,13.58298775,2706.3,2706.2,7.3903]
[1645938069753,14.58298775,2706.3,2706.2,7.3903]
[1645938070356,14.73068775,2706.3,2706.2,7.3903]
[1645938070557,14.73068775,2706.3,2706.1,0.40439823]
[1645938070558,17.24049178,2706.2,2705.8,0.00096]
[1645938070764,11.6297,2706.0,2705.8,0.07253935]
[1645938070958,13.19112093,2705.9,2705.8,0.07253935]
[1645938071361,14.33882093,2705.9,2705.8,0.07253935]
[1645938071603,15.76247808,2705.9,2705.8,0.07253935]
[1645938071802,11.6297,2705.7,2704.8,0.00096]
[1645938072103,11.26,2705.5,2704.8,0.02744165]
[1645938072302,11.26,2705.3,2704.8,0.02744165]
[1645938072506,11.6297,2705.1,2704.8,0.02744165]
[1645938072709,11.26,2704.9,2704.8,0.02744165]
[1645938072903,16.6117604,2704.9,2704.8,0.02744165]
[1645938073104,17.80426088,2704.9,2704.8,0.02744165]
[1645938073304,16.2420604,2704.9,2703.5,5.11596822]
[1645938073504,1.8154,2704.8,2703.5,5.11596822]
[1645938073705,3.5,2704.7,2703.5,5.11596822]
[1645938073903,14.76,2704.7,2703.5,3.98746822]
[1645938074105,1.26531242,2704.2,2703.5,3.98746822]
[1645938074306,3.5,2704.7,2703.6,7.3969]
[1645938074606,1.8154,2704.8,2704.0,0.00442182]
[1645938074806,3.6479,2705.1,2704.0,0.00442182]
[1645938075006,5.5507,2705.1,2704.0,0.00442182]
[1645938075211,5.7028,2705.1,2704.0,0.00442182]
[1645938075467,5.7028,2705.1,2703.6,8.48092711]
[1645938075468,6.84116105,2705.1,2704.2,1.21772123]
[1645938075670,3.34116105,2705.1,2704.2,1.21772123]
[1645938075868,2.2028,2705.1,2704.4,0.00442108]
[1645938076268,2.2028,2705.1,2704.2,0.76024231]
[1645938076666,1.9028,2705.1,2704.2,0.76024231]
[1645938076866,1.1747,2705.3,2704.7,1.23768794]
[1645938077067,4.04869997,2705.5,2704.7,1.23768794]
[1645938077068,0.13819997,2705.5,2704.7,1.23768794]
[1645938077872,0.13819997,2705.5,2705.3,1.28848128]
[1645938078067,3.0674,2705.8,2704.9,0.00096]
[1645938078368,3.3674,2705.8,2704.7,3.5]
[1645938078666,3.3674,2705.8,2704.7,3.50096]
[1645938078867,3.0674,2705.8,2704.8,0.00096]
[1645938079114,3.0674,2705.8,2705.0,1.30071255]
[1645938079314,8.92879827,2706.1,2704.5,4.75]
[1645938079315,11.26,2705.9,2704.5,4.75]
[1645938079516,0.00593604,2705.6,2704.5,4.75]
[1645938079713,0.00593604,2705.6,2704.5,1.25]
[1645938080115,0.00593604,2705.6,2704.5,0.25]
[1645938080316,11.56,2705.8,2704.5,0.25]
[1645938080523,11.56,2705.8,2704.7,1.40305294]
[1645938080524,0.3,2705.8,2704.7,1.40305294]
[1645938080719,0.0059357,2705.6,2704.7,1.40305294]
[1645938081521,0.1477,2705.7,2704.7,1.40305294]
[1645938081720,12.68837184,2705.7,2704.7,1.40305294]
[1645938081920,0.00593587,2705.6,2704.7,1.40305294]
[1645938082320,0.00593587,2705.6,2704.5,0.25]
[1645938082621,0.00593587,2705.6,2704.6,0.00096]
[1645938082864,0.1477,2705.5,2704.6,0.00096]
[1645938083058,12.84067184,2705.7,2704.6,0.00096]
[1645938083059,0.1536357,2705.6,2704.6,0.00096]
[1645938083856,0.1536357,2705.6,2704.6,1.09200913]
[1645938084057,0.1477,2705.6,2704.7,0.00096]
[1645938084259,0.15363579,2705.6,2704.7,0.00096]
[1645938084758,0.52333579,2705.6,2704.7,0.00096]
[1645938084958,11.26,2705.5,2704.7,0.00096]
[1645938085359,0.1477,2705.4,2704.7,0.00096]
[1645938085568,0.1477,2705.4,2704.3,0.02205132]
[1645938085965,1.29916884,2705.1,2704.4,1.06313257]
[1645938086263,1.29916884,2705.1,2704.5,0.00096]
[1645938086464,0.1477,2705.4,2704.2,3.50096]
[1645938086712,0.00593519,2705.6,2704.3,0.00537027]
[1645938087316,12.96972508,2705.5,2704.3,0.00537027]
[1645938087514,1.0618562,2705.3,2704.6,1.06380998]
[1645938087713,1.0618562,2705.3,2704.7,0.00096]
[1645938087914,1.0618562,2705.3,2704.3,0.02205132]
[1645938088318,12.6218562,2705.3,2704.3,0.02205132]
[1645938088513,1.0618562,2705.3,2704.3,0.02205132]
[1645938088718,1.3618562,2705.3,2704.6,1.26738339]
[1645938088916,11.26,2705.5,2704.6,1.26738339]
[1645938089119,11.26,2705.5,2704.7,0.00096]
[1645938089317,11.56,2705.5,2704.7,0.00096]
[1645938090117,1.56208745,2705.4,2704.7,0.00096]
[1645938090362,11.56,2705.5,2704.6,1.26738339]
[1645938090556,12.82208898,2705.4,2704.7,0.00096]
[1645938090760,12.82208898,2705.4,2704.3,0.02301132]
[1645938090761,11.26,2705.4,2704.3,0.02301132]
[1645938090958,1.56211166,2705.3,2704.3,0.02301132]
[1645938091157,11.26,2705.4,2704.3,0.00096]
[1645938091358,0.3,2705.5,2704.3,0.02205132]
[1645938091359,16.46982722,2705.3,2704.3,0.02205132]
[1645938091561,1.16984235,2705.1,2704.4,1.42280198]
[1645938091759,1.16984235,2705.1,2704.5,0.00096]
[1645938091959,1.16984235,2705.1,2704.3,0.02205132]
[1645938092364,1.16984235,2705.1,2704.2,0.00096]
[1645938092560,1.16984235,2705.1,2704.3,7.40001027]
[1645938092960,12.42984235,2705.1,2704.3,7.40001027]
[1645938093268,3.5,2705.0,2704.3,7.40001027]
[1645938093461,3.6477,2705.0,2704.3,7.40001027]
[1645938093661,3.6477,2705.0,2704.3,7.3956]
[1645938093860,0.4477,2705.0,2704.3,7.40001027]
[1645938094104,0.1477,2705.0,2704.3,7.40001027]
[1645938094508,1.16984235,2705.1,2704.3,8.58332676]
[1645938094706,1.16984235,2705.1,2704.3,8.57891649]
[1645938095107,3.5,2705.3,2704.3,8.58332676]
[1645938095306,11.26,2705.4,2704.4,0.00096]
[1645938095510,3.5,2705.3,2704.4,0.00096]
[1645938095712,11.26,2705.4,2704.4,0.00096]
[1645938095914,14.76,2705.3,2704.4,0.00096]
[1645938096112,3.5,2705.2,2704.4,0.00096]
[1645938096310,11.26,2705.3,2704.4,0.00096]
[1645938096710,1.17966697,2705.2,2704.4,0.00096]
[1645938097511,3.5,2705.3,2704.4,0.00096]
[1645938098653,3.6477,2705.3,2704.4,0.00096]
[1645938099054,3.5,2705.3,2704.4,0.00096]
[1645938100254,14.76,2705.3,2704.4,0.00096]
[1645938101063,15.4297,2705.3,2704.4,0.00096]
[1645938101258,0.1477,2705.2,2704.4,0.00096]
[1645938102112,0.1477,2705.5,2704.4,0.00096]
[1645938102311,10.8013444,2706.1,2704.4,0.53096]
[1645938102312,0.00593528,2705.6,2704.4,0.53096]
[1645938102713,1.56198179,2705.5,2704.4,0.53096]
[1645938103313,1.56198179,2705.4,2704.4,0.53096]
[1645938103512,1.04855044,2705.6,2704.4,0.53096]
[1645938103716,1.56202807,2705.5,2704.4,0.53096]
[1645938104511,3.5,2705.7,2704.4,0.53096]
[1645938104512,1.56202807,2705.4,2704.4,0.53096]
[1645938104714,0.00593553,2705.6,2704.4,0.53096]
[1645938104915,1.56195263,2705.5,2704.4,0.53096]
[1645938105113,0.00593553,2705.6,2704.4,0.53096]
[1645938105378,0.00593553,2705.6,2704.6,1.35435764]
[1645938105379,1.06093732,2705.4,2704.6,1.35435764]
[1645938105569,1.5620259,2705.3,2704.7,0.00096]
[1645938105774,1.5620259,2705.3,2704.4,0.00096]
[1645938107169,1.5620259,2705.3,2704.4,1.33417407]
[1645938107369,1.56049145,2705.3,2704.4,1.33417407]
[1645938107569,5.06049145,2705.3,2704.4,1.33417407]
[1645938107770,3.5,2705.3,2704.4,1.33417407]
[1645938107971,1.06093732,2705.4,2704.4,1.33417407]
[1645938108172,0.00593536,2705.6,2704.4,1.63417407]
[1645938108372,0.00593536,2705.6,2704.5,5.0]
[1645938108571,0.00593536,2705.6,2704.6,0.00096]
[1645938109206,1.36108411,2705.7,2704.9,1.34546856]
[1645938109408,0.00593579,2705.6,2705.0,0.00096]
[1645938109606,0.00593579,2705.6,2704.6,0.00096]
[1645938110309,1.36108411,2705.7,2704.6,0.00096]
[1645938110510,1.36108411,2705.7,2704.9,1.27359588]
[1645938110710,0.00593579,2705.6,2704.9,1.27359588]